fUSD/lending_fUSD_20240614
["ID","MTS","AMOUNT","RATE_DAILY","PERIOD"]
[329432842,1718339469256,-500.0,0.00024383,3]
[329432843,1718339469295,-1058.89,0.00024383,3]
[329432844,1718339469317,-500.0,0.00024383,3]
[329432845,1718339469346,-500.0,0.00024383,3]
[329432846,1718339469363,-2428.66,0.00024383,3]
[329432847,1718339469382,-592.39,0.00024383,3]
[329432848,1718339469396,-2903.07,0.00024383,3]
[329432849,1718339469409,-500.0,0.00024383,3]
[329432850,1718339469423,-500.0,0.00024383,3]
[329432851,1718339469438,-500.0,0.00024383,3]
[329432852,1718339469470,-1440.79,0.00024383,3]
[329432853,1718339469497,-592.07,0.00024383,3]
[329432854,1718339469538,-504.78283019,0.00024383,3]
[329432855,1718339469563,-1382.49,0.00024383,3]
[329432856,1718339469590,-500.0,0.00024383,3]
[329432857,1718339469620,-500.0,0.00024383,3]
[329432858,1718339469634,-500.0,0.00024383,3]
[329432859,1718339469646,-3488.55,0.00024383,3]
[329432860,1718339469693,-685.96,0.00024383,3]
[329432861,1718339469704,-500.0,0.00024383,3]
[329432862,1718339469731,-7564.41,0.00024383,3]
[329432863,1718339469755,-1913.72,0.00024383,3]
[329432864,1718339469792,-1286.09,0.00024383,3]
[329432865,1718339469812,-500.0,0.00024383,3]
[329432866,1718339469824,-500.0,0.00024383,3]
[329432867,1718339469839,-586.2,0.00024383,3]
[329432868,1718339469857,-500.0,0.00024383,3]
[329432869,1718339469870,-812.79,0.00024383,3]
[329432870,1718339469884,-441.61671468,0.00024383,3]
[329432871,1718339469896,-500.0,0.00024383,3]
[329432872,1718339469907,-500.0,0.00024383,3]
[329432873,1718339469925,-500.0,0.00024383,3]
[329432874,1718339469954,-500.0,0.00024383,3]
[329432875,1718339469965,-500.0,0.00024383,3]
[329432876,1718339469977,-500.0,0.00024383,3]
[329432877,1718339469994,-895.63,0.00024383,3]
[329432878,1718339470018,-500.0,0.00024383,3]
[329432879,1718339470057,-500.0,0.00024383,3]
[329432880,1718339470073,-1228.35,0.00024383,3]
[329432881,1718339470093,-3118.28,0.00024383,3]
[329432882,1718339470121,-500.0,0.00024383,3]
[329432883,1718339470133,-500.0,0.00024383,3]
[329432884,1718339470147,-500.0,0.00024383,3]
[329432885,1718339470164,-523.16731685,0.00024383,3]
[329432886,1718339470181,-333.25,0.00024383,3]
[329432887,1718339470194,-506.6658938,0.00024383,3]
[329432888,1718339470205,-500.0,0.00024383,3]
[329432889,1718339470217,-793.01,0.00024383,3]
[329432890,1718339470228,-500.0,0.00024383,3]
[329432891,1718339470239,-500.0,0.00024383,3]
[329432892,1718339470256,-500.0,0.00024383,3]
[329432893,1718339470296,-500.0,0.00024383,3]
[329432894,1718339470310,-500.0,0.00024383,3]
[329432895,1718339470322,-151.0,0.00024383,7]
[329432896,1718339470344,-500.0,0.00024383,3]
[329432897,1718339470363,-500.0,0.00024383,3]
[329432898,1718339470375,-500.0,0.00024383,3]
[329432899,1718339470387,-500.0,0.00024383,3]
[329432900,1718339470409,-500.0,0.00024383,3]
[329432901,1718339470440,-151.090688,0.00024383,7]
[329432902,1718339470458,-164.24,0.00024384,2]
[329432903,1718339470474,-187.16,0.00024384,2]
[329432904,1718339470524,-253.96,0.00024384,2]
[329432905,1718339470543,-1026.0,0.000244,2]
[329432906,1718339470564,-151.0,0.00024487,7]
[329432907,1718339470594,-151.0,0.00024487,7]
[329432908,1718339470608,-151.0,0.00024487,7]
[329432909,1718339470626,-150.0,0.00024521,2]
[329432910,1718339470638,-33021.61679311,0.00024527,2]
[329432911,1718339470671,-151.0,0.00024527,7]
[329432912,1718339470705,-161.900372,0.00024527,7]
[329432913,1718339470717,-151.0,0.00024527,7]
[329432914,1718339470731,-151.0,0.00024527,7]
[329432915,1718339470750,-209.773264,0.00024527,7]
[329432916,1718339470780,-155.845885,0.00024527,7]
[329432917,1718339470822,-157.524814,0.00024527,7]
[329432918,1718339470834,-151.0,0.00024527,7]
[329432919,1718339470856,-292.854174,0.00024527,7]
[329432920,1718339470889,-183.70473488,0.00024555,2]
[329432921,1718339470912,-167.12061151,0.00024556,2]
[329432922,1718339470929,-500.0,0.00024556,2]
[329432923,1718339470945,-517.0,0.00024556,2]
[329432924,1718339470973,-1500.0,0.00024569,2]
[329432925,1718339470988,-1500.0,0.00024587,2]
[329432926,1718339471000,-2000.0,0.00024594,2]
[329432927,1718339471026,-200.0,0.00024594,2]
[329432928,1718339471038,-177.26,0.00024637,2]
[329432929,1718339471057,-151.0,0.00024654,7]
[329432930,1718339471072,-152.805666,0.00024654,7]
[329432931,1718339471092,-151.0,0.00024654,7]
[329432932,1718339471130,-151.0,0.00024654,7]
[329432933,1718339471168,-804.3,0.00024654,3]
[329432934,1718339471184,-436.76799294,0.00024655,2]
[329432935,1718339471199,-500.0,0.00024655,2]
[329432936,1718339471231,-500.0,0.00024655,2]
[329432937,1718339471257,-520.14183029,0.00024655,2]
[329432938,1718339471275,-500.0,0.00024655,2]
[329432939,1718339471288,-500.0,0.00024655,2]
[329432940,1718339471312,-500.0,0.00024655,2]
[329432941,1718339471337,-500.0,0.00024655,2]
[329432942,1718339471357,-500.0,0.00024655,2]
[329432943,1718339471379,-500.0,0.00024655,2]
[329432944,1718339471400,-500.0,0.00024655,2]
[329432945,1718339471415,-500.0,0.00024655,2]
[329432946,1718339471426,-500.0,0.00024655,2]
[329432947,1718339471438,-500.0,0.00024655,2]
[329432948,1718339471455,-500.0,0.00024655,2]
[329432949,1718339471476,-500.0,0.00024655,2]
[329432950,1718339471488,-500.0,0.00024655,2]
[329432951,1718339471508,-500.0,0.00024655,2]
[329432952,1718339471523,-500.0,0.00024655,2]
[329432953,1718339471534,-500.0,0.00024655,2]
[329432954,1718339471552,-500.0,0.00024655,2]
[329432955,1718339471564,-500.0,0.00024655,2]
[329432956,1718339471575,-500.0,0.00024655,2]
[329432957,1718339471586,-507.69927242,0.00024655,2]
[329432958,1718339471600,-500.0,0.00024655,2]
[329432959,1718339471614,-500.0,0.00024655,2]
[329432960,1718339471626,-506.67114639,0.00024655,2]
[329432961,1718339471637,-500.0,0.00024655,2]
[329432962,1718339471660,-500.0,0.00024655,2]
[329432963,1718339471671,-500.0,0.00024655,2]
[329432964,1718339471682,-500.0,0.00024655,2]
[329432965,1718339471713,-500.0,0.00024655,2]
[329432966,1718339471724,-500.0,0.00024655,2]
[329432967,1718339471739,-500.0,0.00024655,2]
[329432968,1718339471751,-509.84126449,0.00024655,2]
[329432969,1718339471764,-150.13484913,0.00024655,2]
[329432970,1718339471792,-500.0,0.00024655,2]
[329432971,1718339471807,-500.0,0.00024655,2]
[329432972,1718339471823,-500.0,0.00024655,2]
[329432973,1718339471838,-500.0,0.00024655,2]
[329432974,1718339471850,-500.0,0.00024655,2]
[329432975,1718339471862,-500.0,0.00024655,2]
[329432976,1718339471873,-500.0,0.00024655,2]
[329432977,1718339471886,-500.0,0.00024655,2]
[329432978,1718339471898,-500.0,0.00024655,2]
[329432979,1718339471910,-500.0,0.00024655,2]
[329432980,1718339471921,-531.81647847,0.00024655,2]
[329432981,1718339471933,-500.0,0.00024655,2]
[329432982,1718339471951,-500.0,0.00024655,2]
[329432983,1718339471966,-522.9083459,0.00024655,2]
[329432984,1718339471979,-500.0,0.00024655,2]
[329432985,1718339471993,-500.0,0.00024655,2]
[329432986,1718339472007,-500.0,0.00024655,2]
[329432987,1718339472019,-500.0,0.00024655,2]
[329432988,1718339472033,-500.0,0.00024655,2]
[329432989,1718339472046,-500.0,0.00024655,2]
[329432990,1718339472058,-500.0,0.00024655,2]
[329432991,1718339472075,-500.0,0.00024655,2]
[329432992,1718339472089,-500.0,0.00024655,2]
[329432993,1718339472101,-500.0,0.00024655,2]
[329432994,1718339472113,-500.0,0.00024655,2]
[329432995,1718339472126,-523.82,0.00024655,2]
[329432996,1718339472139,-500.0,0.00024655,2]
[329432997,1718339472154,-500.0,0.00024655,2]
[329432998,1718339472169,-500.0,0.00024655,2]
[329432999,1718339472185,-500.0,0.00024655,2]
[329433000,1718339472198,-500.0,0.00024655,2]
[329433001,1718339472210,-500.0,0.00024655,2]
[329433002,1718339472237,-500.0,0.00024655,2]
[329433003,1718339472248,-500.0,0.00024655,2]
[329433004,1718339472264,-500.0,0.00024655,2]
[329433005,1718339472284,-500.0,0.00024655,2]
[329433006,1718339472299,-500.0,0.00024655,2]
[329433007,1718339472310,-500.0,0.00024655,2]
[329433008,1718339472356,-500.0,0.00024655,2]
[329433009,1718339472368,-500.0,0.00024655,2]
[329433010,1718339472382,-573.21396101,0.00024655,2]
[329433011,1718339472393,-500.0,0.00024655,2]
[329433012,1718339472408,-500.0,0.00024655,2]
[329433013,1718339472421,-153.022216,0.00024655,7]
[329433014,1718339472434,-585.5822061,0.00024655,2]
[329433015,1718339472462,-500.0,0.00024655,2]
[329433016,1718339472478,-500.0,0.00024655,2]
[329433017,1718339472495,-500.0,0.00024655,2]
[329433018,1718339472521,-500.0,0.00024655,2]
[329433019,1718339472547,-500.0,0.00024655,2]
[329433020,1718339472563,-500.0,0.00024655,2]
[329433021,1718339472576,-152.552522,0.00024655,7]
[329433022,1718339472587,-500.0,0.00024655,2]
[329433023,1718339472600,-500.0,0.00024655,2]
[329433024,1718339472610,-500.0,0.00024655,2]
[329433025,1718339472623,-500.0,0.00024655,2]
[329433026,1718339472635,-519.75434605,0.00024655,2]
[329433027,1718339472647,-500.0,0.00024655,2]
[329433028,1718339472659,-515.31063896,0.00024655,2]
[329433029,1718339472675,-500.0,0.00024655,2]
[329433030,1718339472688,-500.0,0.00024655,2]
[329433031,1718339472704,-500.0,0.00024655,2]
[329433032,1718339472717,-500.0,0.00024655,2]
[329433033,1718339472730,-500.0,0.00024655,2]
[329433034,1718339472743,-518.6345936,0.00024655,2]
[329433035,1718339472764,-500.0,0.00024655,2]
[329433036,1718339472788,-500.0,0.00024655,2]
[329433037,1718339472799,-500.0,0.00024655,2]
[329433038,1718339472814,-500.0,0.00024655,2]
[329433039,1718339472830,-500.0,0.00024655,2]
[329433040,1718339472843,-500.0,0.00024655,2]
[329433041,1718339472855,-500.0,0.00024655,2]
[329433042,1718339472868,-409.07406991,0.00024655,2]
[329433043,1718339472891,-500.0,0.00024655,2]
[329433044,1718339472903,-500.0,0.00024655,2]
[329433045,1718339472924,-535.04856463,0.00024655,2]
[329433046,1718339472936,-500.0,0.00024655,2]
[329433047,1718339472949,-500.0,0.00024655,2]
[329433048,1718339472960,-513.31497696,0.00024655,2]
[329433049,1718339472978,-500.0,0.00024655,2]
[329433050,1718339472989,-500.0,0.00024655,2]
[329433051,1718339473007,-500.0,0.00024655,2]
[329433052,1718339473018,-500.0,0.00024655,2]
[329433053,1718339473036,-500.0,0.00024655,2]
[329433054,1718339473048,-500.0,0.00024655,2]
[329433055,1718339473066,-500.0,0.00024655,2]
[329433056,1718339473083,-500.0,0.00024655,2]
[329433057,1718339473094,-500.0,0.00024655,2]
[329433058,1718339473130,-508.98795063,0.00024655,2]
[329433059,1718339473143,-500.0,0.00024655,2]
[329433060,1718339473171,-527.0846492,0.00024655,2]
[329433061,1718339473192,-500.0,0.00024655,2]
[329433062,1718339473204,-500.0,0.00024655,2]
[329433063,1718339473219,-500.0,0.00024655,2]
[329433064,1718339473379,-500.0,0.00024655,2]
[329433065,1718339473409,-554.39480008,0.00024655,2]
[329433066,1718339473425,-500.0,0.00024655,2]
[329433067,1718339473437,-514.5738441,0.00024655,2]
[329433068,1718339473450,-500.0,0.00024655,2]
[329433069,1718339473462,-500.0,0.00024655,2]
[329433070,1718339473474,-500.0,0.00024655,2]
[329433071,1718339473492,-500.0,0.00024655,2]
[329433072,1718339473503,-500.0,0.00024655,2]
[329433073,1718339473514,-500.0,0.00024655,2]
[329433074,1718339473525,-500.0,0.00024655,2]
[329433075,1718339473544,-500.0,0.00024655,2]
[329433076,1718339473557,-500.0,0.00024655,2]
[329433077,1718339473569,-500.0,0.00024655,2]
[329433078,1718339473582,-500.0,0.00024655,2]
[329433079,1718339473594,-500.0,0.00024655,2]
[329433080,1718339473607,-500.0,0.00024655,2]
[329433081,1718339473617,-500.0,0.00024655,2]
[329433082,1718339473630,-620.08457805,0.00024655,2]
[329433083,1718339473651,-500.0,0.00024655,2]
[329433084,1718339473677,-500.0,0.00024655,2]
[329433085,1718339473688,-500.0,0.00024655,2]
[329433086,1718339473699,-500.0,0.00024655,2]
[329433087,1718339473720,-500.0,0.00024655,2]
[329433088,1718339473731,-500.0,0.00024655,2]
[329433089,1718339473742,-500.0,0.00024655,2]
[329433090,1718339473753,-500.0,0.00024655,2]
[329433091,1718339473764,-500.0,0.00024655,2]
[329433092,1718339473782,-500.0,0.00024655,2]
[329433093,1718339473793,-500.0,0.00024655,2]
[329433094,1718339473810,-500.0,0.00024655,2]
[329433095,1718339473820,-500.0,0.00024655,2]
[329433096,1718339473831,-500.0,0.00024655,2]
[329433097,1718339473841,-500.0,0.00024655,2]
[329433098,1718339473851,-500.0,0.00024655,2]
[329433099,1718339473868,-500.0,0.00024655,2]
[329433100,1718339473878,-519.1988474,0.00024655,2]
[329433101,1718339473890,-170.397449,0.00024655,7]
[329433102,1718339473902,-500.0,0.00024655,2]
[329433103,1718339473913,-500.0,0.00024655,2]
[329433104,1718339473929,-500.0,0.00024655,2]
[329433105,1718339473939,-500.0,0.00024655,2]
[329433106,1718339473950,-500.0,0.00024655,2]
[329433107,1718339473961,-500.0,0.00024655,2]
[329433108,1718339473972,-500.0,0.00024655,2]
[329433109,1718339473986,-500.0,0.00024655,2]
[329433110,1718339474001,-155.476477,0.00024655,7]
[329433111,1718339474012,-293.712373,0.00024655,7]
[329433112,1718339474025,-504.67515831,0.00024655,2]
[329433113,1718339474035,-151.0,0.00024655,7]
[329433114,1718339474047,-156.367654,0.00024655,7]
[329433115,1718339474057,-500.0,0.00024655,2]
[329433116,1718339474068,-155.27616,0.00024655,7]
[329433117,1718339474078,-154.282282,0.00024655,7]
[329433118,1718339474089,-506.12557722,0.00024655,2]
[329433119,1718339474112,-500.0,0.00024655,2]
[329433120,1718339474124,-500.0,0.00024655,2]
[329433121,1718339474136,-155.479984,0.00024655,7]
[329433122,1718339474149,-500.0,0.00024655,2]
[329433123,1718339474177,-500.0,0.00024655,2]
[329433124,1718339474188,-500.0,0.00024655,2]
[329433125,1718339474199,-500.0,0.00024655,2]
[329433126,1718339474210,-500.0,0.00024655,2]
[329433127,1718339474232,-151.0,0.00024655,7]
[329433128,1718339474245,-194.176061,0.00024655,7]
[329433129,1718339474266,-194.176061,0.00024655,7]
[329433130,1718339474287,-155.664625,0.00024655,7]
[329433131,1718339474297,-500.0,0.00024655,2]
[329433132,1718339474309,-500.0,0.00024655,2]
[329433133,1718339474332,-500.0,0.00024655,3]
[329433134,1718339474344,-500.0,0.00024655,3]
[329433135,1718339474360,-151.0,0.00024655,7]
[329433136,1718339474385,-151.0,0.00024655,7]
[329433137,1718339474398,-500.0,0.00024655,3]
[329433138,1718339474410,-358.16315861,0.00024655,3]
[329433139,1718339474422,-500.0,0.00024655,3]
[329433140,1718339474435,-151.0,0.00024655,7]
[329433141,1718339474462,-163.566555,0.00024655,7]
[329433142,1718339474474,-500.0,0.00024655,3]
[329433143,1718339474485,-349.70337086,0.00024655,3]
[329433144,1718339474500,-151.0,0.00024655,7]
[329433145,1718339474516,-151.0,0.00024655,7]
[329433146,1718339474529,-152.700716,0.00024655,7]
[329433147,1718339474540,-500.0,0.00024655,3]
[329433148,1718339474552,-500.0,0.00024655,3]
[329433149,1718339474562,-152.730458,0.00024655,7]
[329433150,1718339474575,-1564.27,0.00024655,3]
[329433151,1718339474592,-151.0,0.00024655,7]
[329433152,1718339474604,-500.0,0.00024655,3]
[329433153,1718339474615,-151.0,0.00024655,7]
[329433154,1718339474625,-227.27900716,0.00024655,3]
[329433155,1718339474636,-151.0,0.00024655,7]
[329433156,1718339474647,-500.0,0.00024655,3]
[329433157,1718339474668,-151.0,0.00024655,7]
[329433158,1718339474699,-151.0,0.00024655,7]
[329433159,1718339474710,-151.0,0.00024655,7]
[329433160,1718339474728,-500.0,0.00024655,3]
[329433161,1718339474738,-500.0,0.00024655,3]
[329433162,1718339474751,-500.0,0.00024655,3]
[329433163,1718339474762,-151.0,0.00024655,7]
[329433164,1718339474773,-500.0,0.00024655,3]
[329433165,1718339474784,-500.0,0.00024655,3]
[329433166,1718339474795,-151.0,0.00024655,7]
[329433167,1718339474806,-500.0,0.00024655,3]
[329433168,1718339474826,-500.0,0.00024655,3]
[329433169,1718339474836,-500.0,0.00024655,3]
[329433170,1718339474849,-424.79,0.00024655,3]
[329433171,1718339474860,-500.0,0.00024655,3]
[329433172,1718339474872,-500.0,0.00024655,3]
[329433173,1718339474885,-500.0,0.00024655,3]
[329433174,1718339474918,-589.39,0.00024655,3]
[329433175,1718339474943,-500.0,0.00024655,3]
[329433176,1718339474958,-500.0,0.00024655,3]
[329433177,1718339474972,-500.0,0.00024655,3]
[329433178,1718339474988,-500.0,0.00024655,3]
[329433179,1718339475025,-500.0,0.00024655,3]
[329433180,1718339475043,-500.0,0.00024655,3]
[329433181,1718339475068,-500.0,0.00024655,3]
[329433182,1718339475078,-500.0,0.00024655,3]
[329433183,1718339475092,-500.0,0.00024655,3]
[329433184,1718339475103,-500.0,0.00024655,3]
[329433185,1718339475114,-500.0,0.00024655,3]
[329433186,1718339475132,-500.0,0.00024655,3]
[329433187,1718339475143,-739.0,0.00024655,3]
[329433188,1718339475154,-500.0,0.00024655,3]
[329433189,1718339475176,-500.0,0.00024655,3]
[329433190,1718339475188,-500.0,0.00024655,3]
[329433191,1718339475204,-500.0,0.00024655,3]
[329433192,1718339475217,-500.0,0.00024655,3]
[329433193,1718339475231,-500.0,0.00024655,3]
[329433194,1718339475248,-500.0,0.00024655,3]
[329433195,1718339475278,-500.0,0.00024655,3]
[329433196,1718339475302,-500.0,0.00024655,3]
[329433197,1718339475330,-500.0,0.00024655,3]
[329433198,1718339475360,-531.15,0.00024655,3]
[329433199,1718339475385,-500.0,0.00024655,3]
[329433200,1718339475424,-500.0,0.00024655,3]
[329433201,1718339475437,-500.0,0.00024655,3]
[329433202,1718339475457,-500.0,0.00024655,3]
[329433203,1718339475468,-500.0,0.00024655,3]
[329433204,1718339475481,-500.0,0.00024655,3]
[329433205,1718339475494,-542.84,0.00024655,3]
[329433206,1718339475505,-500.0,0.00024655,3]
[329433207,1718339475517,-500.0,0.00024655,3]
[329433208,1718339475545,-500.0,0.00024655,3]
[329433209,1718339475555,-1349.75,0.00024655,3]
[329433210,1718339475567,-500.0,0.00024655,3]
[329433211,1718339475580,-525.35929683,0.00024655,3]
[329433212,1718339475592,-509.62086818,0.00024655,3]
[329433213,1718339475602,-500.0,0.00024655,3]
[329433214,1718339475613,-500.0,0.00024655,3]
[329433215,1718339475624,-519.83585511,0.00024655,3]
[329433216,1718339475635,-701.93,0.00024655,3]
[329433217,1718339475646,-500.0,0.00024655,3]
[329433218,1718339475661,-515.38483694,0.00024655,3]
[329433219,1718339475673,-509.6787262,0.00024655,3]
[329433220,1718339475685,-556.69121481,0.00024655,3]
[329433221,1718339475701,-999.06,0.00024655,3]
[329433222,1718339475721,-513.28434762,0.00024655,3]
[329433223,1718339475744,-500.0,0.00024655,3]
[329433224,1718339475755,-500.0,0.00024655,3]
[329433225,1718339475772,-586.4793194,0.00024655,3]
[329433226,1718339475782,-500.0,0.00024655,3]
[329433227,1718339475809,-500.0,0.00024655,3]
[329433228,1718339475836,-4942.89,0.00024655,3]
[329433229,1718339475848,-500.0,0.00024655,3]
[329433230,1718339475859,-500.0,0.00024655,3]
[329433231,1718339475873,-511.01131792,0.00024655,3]
[329433232,1718339475885,-592.22276173,0.00024655,3]
[329433233,1718339475896,-500.0,0.00024655,3]
[329433234,1718339475911,-500.0,0.00024655,3]
[329433235,1718339475921,-500.0,0.00024655,3]
[329433236,1718339475932,-151.090688,0.00024655,7]
[329433237,1718339475953,-8424.06422309,0.00024656,2]
[329433238,1718339475964,-510.81363586,0.00024656,2]
[329433239,1718339475980,-528.44273913,0.00024656,2]
[329433240,1718339475993,-500.0,0.00024656,2]
[329433241,1718339476006,-526.58891726,0.00024656,2]
[329433242,1718339476056,-276.42838458,0.00024656,2]
[329433243,1718339476073,-542.10398593,0.00024656,2]
[329433244,1718339476090,-523.30083821,0.00024656,2]
[329433245,1718339476102,-500.0,0.00024656,2]
[329433246,1718339476121,-528.72295957,0.00024656,2]
[329433247,1718339476146,-529.20737578,0.00024656,2]
[329433248,1718339476160,-596.38148517,0.00024656,2]
[329433249,1718339476173,-500.0,0.00024656,2]
[329433250,1718339476186,-312.81418081,0.00024656,2]
[329433251,1718339476199,-500.0,0.00024656,2]
[329433252,1718339476211,-500.0,0.00024656,2]
[329433253,1718339476224,-500.0,0.00024656,2]
[329433254,1718339476235,-500.0,0.00024656,2]
[329433255,1718339476246,-596.39458814,0.00024656,2]
[329433256,1718339476274,-500.0,0.00024656,2]
[329433257,1718339476286,-530.50387005,0.00024656,2]
[329433258,1718339476296,-520.40927954,0.00024656,2]
[329433259,1718339476307,-500.0,0.00024656,2]
[329433260,1718339476318,-500.0,0.00024656,2]
[329433261,1718339476328,-520.51294073,0.00024656,2]
[329433262,1718339476343,-510.1452981,0.00024656,2]
[329433263,1718339476353,-534.9578142,0.00024656,2]
[329433264,1718339476380,-500.0,0.00024656,2]
[329433265,1718339476396,-508.13954162,0.00024656,2]
[329433266,1718339476410,-447.4973802,0.00024656,2]
[329433267,1718339476422,-512.13724005,0.00024656,2]
[329433268,1718339476435,-518.44845694,0.00024656,2]
[329433269,1718339476450,-500.0,0.00024656,2]
[329433270,1718339476474,-500.0,0.00024656,2]
[329433271,1718339476505,-373.9961168,0.00024656,2]
[329433272,1718339476532,-500.0,0.00024656,2]
[329433273,1718339476545,-500.0,0.00024656,2]
[329433274,1718339476556,-500.0,0.00024656,2]
[329433275,1718339476585,-513.93800142,0.00024656,2]
[329433276,1718339476596,-528.0,0.00024656,2]
[329433277,1718339476606,-315.12101732,0.00024656,2]
[329433278,1718339476617,-500.0,0.00024656,2]
[329433279,1718339476641,-500.0,0.00024656,2]
[329433280,1718339476672,-500.0,0.00024656,2]
[329433281,1718339476683,-489.98179611,0.00024656,2]
[329433282,1718339476728,-500.0,0.00024656,2]
[329433283,1718339476738,-500.0,0.00024656,2]
[329433284,1718339476749,-535.49967455,0.00024656,2]
[329433285,1718339476766,-509.52864005,0.00024656,2]
[329433286,1718339476777,-512.00648976,0.00024656,2]
[329433287,1718339476806,-500.0,0.00024656,2]
[329433288,1718339476820,-500.0,0.00024656,2]
[329433289,1718339476832,-500.0,0.00024656,2]
[329433290,1718339476850,-519.84649514,0.00024656,2]
[329433291,1718339476862,-500.0,0.00024656,2]
[329433292,1718339476890,-526.01835137,0.00024656,2]
[329433293,1718339476906,-536.5053187,0.00024656,2]
[329433294,1718339476917,-500.0,0.00024656,2]
[329433295,1718339476931,-500.0,0.00024656,2]
[329433296,1718339476947,-530.10777109,0.00024656,2]
[329433297,1718339476965,-527.29339102,0.00024656,2]
[329433298,1718339476984,-500.0,0.00024656,2]
[329433299,1718339476997,-500.0,0.00024656,2]
[329433300,1718339477008,-500.0,0.00024656,2]
[329433301,1718339477023,-500.0,0.00024656,2]
[329433302,1718339477072,-500.0,0.00024656,2]
[329433303,1718339477089,-500.0,0.00024656,2]
[329433304,1718339477112,-500.0,0.00024656,2]
[329433305,1718339477124,-545.17993126,0.00024656,2]
[329433306,1718339477158,-500.0,0.00024656,2]
[329433307,1718339477169,-500.0,0.00024656,2]
[329433308,1718339477183,-500.0,0.00024656,2]
[329433309,1718339477194,-500.0,0.00024656,2]
[329433310,1718339477207,-500.0,0.00024656,2]
[329433311,1718339477223,-526.50834052,0.00024656,2]
[329433312,1718339477262,-500.0,0.00024656,2]
[329433313,1718339477291,-500.0,0.00024656,2]
[329433314,1718339477320,-500.0,0.00024656,2]
[329433315,1718339477365,-500.0,0.00024656,2]
[329433316,1718339477384,-500.0,0.00024656,2]
[329433317,1718339477398,-500.0,0.00024656,2]
[329433318,1718339477420,-500.0,0.00024656,2]
[329433319,1718339477432,-512.21062696,0.00024656,2]
[329433320,1718339477457,-500.0,0.00024656,2]
[329433321,1718339477480,-500.0,0.00024656,2]
[329433322,1718339477512,-628.02957672,0.00024656,2]
[329433323,1718339477523,-500.0,0.00024656,2]
[329433324,1718339477538,-500.0,0.00024656,2]
[329433325,1718339477550,-500.0,0.00024656,2]
[329433326,1718339477562,-500.0,0.00024656,2]
[329433327,1718339477573,-151.0,0.00024656,7]
[329433328,1718339477587,-525.89285878,0.00024656,2]
[329433329,1718339477600,-500.0,0.00024656,2]
[329433330,1718339477615,-500.0,0.00024656,2]
[329433331,1718339477629,-500.0,0.00024656,2]
[329433332,1718339477641,-500.0,0.00024656,2]
[329433333,1718339477658,-500.0,0.00024656,2]
[329433334,1718339477669,-500.0,0.00024656,2]
[329433335,1718339477680,-500.0,0.00024656,2]
[329433336,1718339477692,-500.0,0.00024656,2]
[329433337,1718339477705,-500.0,0.00024656,2]
[329433338,1718339477718,-500.0,0.00024656,2]
[329433339,1718339477733,-500.0,0.00024656,2]
[329433340,1718339477744,-500.0,0.00024656,2]
[329433341,1718339477760,-500.0,0.00024656,2]